bitfinex/quotes_ETHUSD_20240828
["timestamp","ask_amount","ask_price","bid_price","bid_amount"]
[1724817050542,0.54281867,2483.8,2483.3,2.5911]
[1724817051508,0.448213,2484.8,2483.8,2.4481]
[1724817051509,2.46909228,2484.8,2483.8,2.4481]
[1724817051712,0.00959228,2484.8,2484.0,2.4481]
[1724817051923,0.00959228,2484.8,2484.2,2.6532]
[1724817052233,0.00959228,2484.8,2484.3,4.05434945]
[1724817052448,0.00959228,2484.8,2484.4,2.6532]
[1724817052611,0.00959228,2484.8,2484.5,0.08048272]
[1724817052811,0.00959228,2484.8,2484.6,2.6532]
[1724817053010,0.00959228,2484.8,2484.7,0.34579848]
[1724817053340,4.06394173,2484.8,2483.9,2.4406]
[1724817053545,4.05434945,2484.4,2483.9,2.4406]
[1724817053719,4.06394173,2484.8,2484.0,0.08050478]
[1724817054049,4.05434945,2484.5,2483.9,2.4406]
[1724817055343,4.05434945,2484.7,2484.0,0.08050381]
[1724817055497,4.05434945,2484.7,2484.0,0.25211038]
[1724817056337,4.05434945,2484.7,2484.1,0.08049893]
[1724817056899,4.05434945,2484.7,2484.2,2.6316]
[1724817057208,0.00959228,2484.8,2484.3,0.08049894]
[1724817057409,4.06394173,2484.8,2484.3,0.08049894]
[1724817057649,4.05434945,2484.6,2483.4,2.4394]
[1724817057806,4.05434945,2484.6,2483.3,7.05434945]
[1724817057807,4.05434945,2484.6,2483.5,10.3594]
[1724817058739,4.05434945,2484.6,2483.5,7.92]
[1724817058943,4.05434945,2484.6,2483.6,3.3424]
[1724817059445,4.05434945,2484.6,2483.7,2.4991]
[1724817061480,4.05434945,2484.4,2483.7,2.4991]
[1724817062096,4.05434945,2484.4,2483.9,2.3745]
[1724817062303,4.4597844,2484.4,2483.9,2.3745]
[1724817063594,4.05434945,2484.6,2484.0,0.08050991]
[1724817064581,4.05434945,2484.4,2484.0,0.08050991]
[1724817064784,4.05434945,2484.6,2484.0,0.08050991]
[1724817065893,4.05434945,2484.6,2483.9,2.3745]
[1724817067178,4.05434945,2484.6,2484.0,0.08050533]
[1724817067383,4.05434945,2484.6,2484.1,2.4014]
[1724817068810,4.05434945,2484.6,2484.2,0.08050142]
[1724817069115,0.41598645,2484.8,2484.2,0.08050142]
[1724817069116,4.06394173,2484.8,2484.3,2.4821]
[1724817069314,4.06394173,2484.8,2484.4,0.08049399]
[1724817069874,4.06394173,2484.8,2484.5,2.3895]
[1724817069875,0.00959228,2484.8,2484.5,2.3895]
[1724817070225,0.00959228,2484.8,2484.7,2.3895]
[1724817070518,4.05434945,2485.4,2484.7,2.3895]
[1724817070702,4.05434945,2485.6,2484.8,2.65926907]
[1724817071270,0.42153584,2486.0,2485.3,4.05434945]
[1724817071534,0.42153584,2486.0,2485.4,3.3225643]
[1724817071750,4.05434945,2485.8,2485.4,2.5788]
[1724817072041,0.42153584,2486.0,2484.7,2.6367]
[1724817072042,2.4478,2486.0,2484.7,2.6367]
[1724817072208,4.05434945,2485.4,2484.8,1.08114104]
[1724817072411,4.05434945,2485.6,2484.8,0.08047104]
[1724817072645,4.05434945,2485.8,2484.9,2.6367]
[1724817072843,4.05434945,2485.6,2484.9,2.6367]
[1724817072998,4.05434945,2485.6,2485.0,0.08046195]
[1724817073198,0.42145653,2486.1,2485.0,0.08047041]
[1724817073503,4.05434945,2485.5,2485.0,0.08047041]
[1724817073698,0.42145653,2486.1,2484.6,2.6367]
[1724817073699,4.05434945,2485.1,2484.6,2.6367]
[1724817073909,4.05434945,2484.7,2484.3,2.6367]
[1724817075281,4.05434945,2484.5,2483.7,2.6367]
[1724817075428,4.05434945,2484.3,2483.7,2.6367]
[1724817075954,4.05434945,2484.1,2483.7,2.6367]
[1724817076309,4.05434945,2484.3,2483.8,0.08051134]
[1724817076908,4.05434945,2484.5,2483.8,0.08051134]
[1724817077545,4.05434945,2484.5,2483.8,0.08050471]
[1724817077753,4.05434945,2484.7,2483.8,0.08050471]
[1724817077902,4.05434945,2484.5,2483.8,0.08050471]
[1724817079065,4.05434945,2484.7,2483.9,2.5577]
[1724817079347,4.05434945,2484.7,2484.0,0.3443158]
[1724817080362,2.4478,2485.1,2484.0,0.3443158]
[1724817080509,4.05434945,2484.8,2484.0,7.7143158]
[1724817081210,4.05434945,2484.8,2484.1,2.5577]
[1724817081414,4.05434945,2484.8,2484.2,1.10768968]
[1724817081615,4.05434945,2484.8,2484.3,0.08048841]
[1724817082549,4.05434945,2485.0,2484.3,0.08048841]
[1724817082872,4.05434945,2485.2,2484.4,2.4819]
[1724817083077,4.05434945,2485.2,2484.5,0.33671799]
[1724817083274,4.05434945,2485.4,2484.6,2.4819]
[1724817083483,4.05434945,2485.4,2484.8,2.393]
[1724817083785,4.05434945,2485.4,2484.9,0.08046932]
[1724817084084,4.05434945,2485.8,2485.0,2.393]
[1724817084377,4.05434945,2485.8,2485.1,0.32780795]
[1724817085537,4.05434945,2485.8,2485.2,2.5487]
[1724817085749,4.05434945,2485.8,2485.3,0.0804591]
[1724817086361,0.1210683,2486.3,2485.4,2.3939]
[1724817086606,4.05434945,2486.2,2485.5,0.32788303]
[1724817086767,0.1210683,2486.3,2485.5,0.24743591]
[1724817086768,4.05434945,2486.0,2485.5,0.24743591]
[1724817087289,4.05434945,2486.0,2485.6,0.0804537]
[1724817088285,4.05434945,2486.2,2485.6,0.0804537]
[1724817088883,0.1210683,2486.3,2485.7,2.4129]
[1724817089037,4.05434945,2486.2,2485.8,0.24933444]
[1724817089237,4.05434945,2486.2,2485.8,0.32977791]
[1724817090239,4.05434945,2486.2,2485.8,0.24933444]
[1724817090439,4.05434945,2486.2,2485.9,0.08044349]
[1724817090684,4.05434945,2486.2,2485.7,2.4129]
[1724817090853,4.05434945,2486.2,2485.8,0.08044667]
[1724817091488,4.05434945,2486.0,2485.7,2.4129]
[1724817091686,4.05434945,2485.8,2485.3,2.5163]
[1724817091854,4.05434945,2485.8,2485.4,0.08046187]
[1724817092059,4.05434945,2485.8,2485.3,3.7583]
[1724817093987,4.05434945,2485.8,2485.1,5.6463]
[1724817094290,4.05434945,2485.8,2485.2,0.08046198]
[1724817094495,4.05434945,2485.8,2484.9,12.42]
[1724817094798,4.05434945,2486.0,2485.0,0.07502996]
[1724817094958,4.05434945,2486.0,2485.1,0.55]
[1724817095159,4.05434945,2486.0,2485.2,0.07499663]
[1724817095354,4.05434945,2486.2,2485.3,0.07499443]
[1724817096095,0.1210683,2486.3,2485.3,0.07499443]
[1724817096096,4.05434945,2486.0,2485.3,0.07499443]
[1724817096791,4.05434945,2486.0,2485.3,0.07499056]
[1724817096792,4.5374745,2486.0,2485.3,0.07499056]
[1724817097155,0.0776901,2486.0,2485.3,0.07499056]
[1724817097460,0.0776901,2486.0,2485.4,2.9787]
[1724817097793,0.0776901,2486.0,2485.5,0.07496945]
[1724817098000,0.0776901,2486.0,2485.6,0.55]
[1724817098167,0.0776901,2486.0,2485.7,0.07497918]
[1724817098168,4.13203955,2486.0,2485.7,0.07497918]
[1724817098370,0.0776901,2486.0,2485.5,0.0749949]
[1724817098597,0.0776901,2486.0,2485.5,0.32536439]
[1724817099758,0.0776901,2486.0,2485.1,9.872]
[1724817099760,4.05434945,2485.8,2485.1,9.872]
[1724817099963,4.05434945,2485.6,2485.1,5.632]
[1724817100295,4.05434945,2485.8,2484.9,12.42]
[1724817100469,4.13203955,2486.0,2485.0,1.242]
[1724817100799,0.42140633,2485.7,2485.1,1.3662]
[1724817101762,0.49909643,2485.7,2485.1,1.3662]
[1724817102481,0.0776901,2485.7,2485.1,1.3662]
[1724817102684,0.0776901,2485.7,2485.2,0.43662]
[1724817102891,0.0776901,2485.7,2485.3,0.55]
[1724817103104,0.0776901,2485.7,2485.2,0.43662]
[1724817103400,0.0776901,2485.7,2485.2,2.84812]
[1724817105299,0.0776901,2485.7,2485.1,7.37]
[1724817109682,0.0776901,2485.7,2485.2,2.3794]
[1724817110985,0.0776901,2485.7,2485.3,0.55]
[1724817111697,0.0776901,2485.7,2485.4,2.5661]
[1724817111698,0.00516505,2485.7,2485.4,2.5661]
[1724817111860,0.00516505,2485.7,2485.6,2.5661]
[1724817112056,0.00516505,2485.7,2485.6,3.1161]
[1724817112057,0.00034342,2485.7,2485.6,3.1161]
[1724817112661,0.00034342,2485.7,2485.6,0.55]
[1724817112864,0.00034342,2485.7,2485.4,0.55]
[1724817113095,0.00034342,2485.7,2485.4,0.8261]
[1724817113797,0.00034342,2485.7,2485.3,2.3566]
[1724817114001,0.00034342,2485.7,2485.1,9.7303]
[1724817114198,0.00034342,2485.7,2485.2,2.3603]
[1724817114827,0.00034342,2485.7,2485.2,2.7647]
[1724817115030,0.00034342,2485.7,2485.3,1.01347]
[1724817116122,0.81988169,2486.0,2485.3,1.01347]
[1724817116329,0.42137436,2486.4,2485.3,1.01347]
[1724817116527,0.42137436,2486.4,2485.4,7.92]
[1724817116732,1.00203199,2486.4,2485.5,0.893347]
[1724817117333,0.42137436,2486.4,2485.5,0.893347]
[1724817119042,2.3666,2486.3,2485.5,0.893347]
[1724817119532,7.85235546,2486.3,2485.4,7.37]
[1724817121055,7.85235546,2486.3,2485.2,2.3603]
[1724817121056,2.4833,2485.6,2484.9,12.42]
[1724817121270,2.4833,2485.6,2484.8,7.37]
[1724817121271,0.7868502,2485.5,2484.8,7.37]
[1724817121416,2.4833,2485.6,2484.8,7.37]
[1724817121611,0.42144946,2485.4,2484.8,7.37]
[1724817125868,0.42144946,2485.4,2484.8,9.8273]
[1724817126220,0.42144946,2485.4,2484.8,7.37]
[1724817127563,0.70052441,2485.4,2484.8,7.37]
[1724817128152,0.70052441,2485.4,2484.6,0.83660858]
[1724817128382,0.70052441,2485.4,2484.7,3.50308713]
[1724817128690,2.4763,2485.3,2484.8,3.50308713]
[1724817128994,2.4763,2485.3,2484.7,0.83660858]
[1724817129176,2.4763,2485.3,2484.8,3.50308975]
[1724817129368,2.4763,2485.3,2484.9,3.50302035]
[1724817129567,2.4763,2485.3,2484.7,0.83660858]
[1724817129768,2.4763,2485.3,2484.8,3.50305732]
[1724817130082,2.4763,2485.3,2484.9,1.40122293]
[1724817130397,2.4763,2485.3,2484.7,3.17448547]
[1724817130556,0.88599244,2485.3,2484.8,3.50307965]
[1724817130756,0.88599244,2485.3,2484.7,3.17448547]
[1724817130961,0.88599244,2485.3,2484.8,3.50301921]
[1724817131156,0.88599244,2485.3,2484.7,3.17448547]
[1724817131359,0.88599244,2485.3,2484.8,1.4012161]
[1724817131554,0.88599244,2485.3,2484.7,3.17448547]
[1724817131889,0.88599244,2485.3,2484.8,0.48337983]
[1724817132858,0.10059212,2486.0,2484.9,3.91057823]
[1724817133089,4.04046217,2486.2,2485.1,0.83660858]
[1724817133392,4.04046217,2486.2,2485.2,5.2338536]
[1724817133597,4.04046217,2486.2,2485.3,3.50249838]
[1724817133782,2.4774,2486.1,2485.2,1.73120067]
[1724817133984,2.4774,2486.1,2485.3,3.50219056]
[1724817134174,2.4774,2486.1,2485.4,0.52333912]
[1724817134368,2.4774,2486.1,2485.2,1.73120067]
[1724817134663,2.4774,2486.1,2485.3,1.40089051]
[1724817134962,2.4774,2486.1,2485.2,0.89459209]
[1724817135156,2.4774,2486.1,2485.3,1.40088996]
[1724817135358,4.04046217,2486.0,2485.4,0.22954821]
[1724817135653,4.04046217,2485.8,2485.1,8.61100858]
[1724817135950,2.5321,2485.7,2485.2,1.40100695]
[1724817136259,2.5321,2485.7,2485.1,7.37]
[1724817136649,2.63267514,2485.7,2485.1,7.37]
[1724817137354,1.12938203,2485.7,2485.2,1.40104737]
[1724817137556,1.12938203,2485.7,2485.1,7.37]
[1724817137854,4.04046217,2485.6,2485.2,1.40103467]
[1724817138057,4.04046217,2485.6,2485.1,7.37]
[1724817139367,1.02880689,2485.7,2485.1,7.37]
[1724817140134,1.02880689,2485.7,2484.9,0.83660858]
[1724817140336,4.04046217,2485.4,2484.8,7.37]
[1724817140760,2.3925,2485.3,2484.8,7.37]
[1724817142473,2.49309429,2485.3,2484.8,7.37]
[1724817142773,4.14106021,2485.2,2484.8,7.37]
[1724817142977,4.14106021,2485.2,2484.5,0.83660858]
[1724817142978,4.79441623,2485.2,2484.5,0.83660858]
[1724817143272,4.79441623,2485.2,2484.6,3.50331978]
[1724817143432,4.79441623,2485.2,2484.5,0.83660858]
[1724817143633,4.79441623,2485.2,2484.6,3.50331815]
[1724817143873,4.79441623,2485.2,2484.5,0.83660858]
[1724817144170,4.79441623,2485.2,2484.6,3.50334258]
[1724817144470,4.04046217,2485.6,2484.7,6.0014828]
[1724817144776,4.04046217,2485.6,2484.8,1.40131207]
[1724817145073,4.04046217,2485.4,2484.7,2.4982]
[1724817145649,4.14105286,2485.4,2484.8,1.40124748]
[1724817145981,4.14105286,2485.4,2484.7,2.4982]
[1724817146184,5.44259899,2485.6,2484.7,2.4982]
[1724817146339,4.04046217,2485.6,2484.8,3.7528629]
[1724817146540,4.04046217,2485.6,2484.8,0.24982]
[1724817147975,4.04046217,2486.1,2485.0,2.372]
[1724817148193,0.10057512,2486.0,2485.1,1.63842341]
[1724817148385,0.10057512,2486.0,2485.2,1.40094542]
[1724817148688,4.04046217,2485.9,2485.1,0.2372]
[1724817151263,4.04046217,2485.6,2485.0,3.20860858]
[1724817151468,4.04046217,2485.6,2485.0,2.372]
[1724817151792,4.14105372,2485.6,2484.9,7.37]
[1724817152076,4.14105372,2485.6,2484.9,8.407232]
[1724817153345,0.41410377,2485.9,2484.9,8.407232]
[1724817153346,0.10059149,2485.8,2484.9,8.407232]
[1724817153546,0.10058169,2485.8,2485.0,1.40122015]
[1724817153746,0.10058169,2485.8,2485.1,0.98084522]
[1724817154077,4.04046217,2485.9,2485.2,2.8811]
[1724817155003,4.1410314,2486.2,2485.2,2.8811]
[1724817155170,4.14102726,2486.2,2485.3,0.38619452]
[1724817156505,4.04046217,2486.0,2485.3,0.38619452]
[1724817157509,0.10057112,2485.9,2485.3,0.38619452]
[1724817158008,4.04046217,2486.0,2485.3,0.38619452]
[1724817158704,0.1005711,2485.9,2485.3,0.38619452]
[1724817159061,4.04046217,2486.0,2485.3,0.38619452]
[1724817160465,4.04046217,2485.8,2485.2,2.8811]
[1724817160665,4.04046217,2485.6,2485.0,2.8103]
[1724817160880,2.9291,2485.8,2484.8,0.83660858]
[1724817160881,4.04046217,2485.4,2484.8,0.83660858]
[1724817161081,4.04046217,2485.4,2484.7,0.83660858]
[1724817161280,4.04046217,2485.4,2484.8,3.50311075]
[1724817161480,4.04046217,2485.4,2484.9,1.83519952]
[1724817161825,4.04046217,2485.2,2484.6,11.01690858]
[1724817162123,4.04046217,2485.2,2484.6,7.37]
[1724817162424,4.04046217,2485.4,2484.7,2.13836998]
[1724817162586,4.04046217,2485.4,2484.5,0.83660858]
[1724817162783,4.04046217,2485.4,2484.6,4.34000763]
[1724817162988,4.04046217,2485.4,2484.7,3.50339905]
[1724817163324,4.04046217,2485.4,2484.8,0.43400076]
[1724817163529,4.04046217,2485.4,2484.6,0.83660858]
[1724817163713,4.04046217,2485.4,2484.7,3.50338503]
[1724817163912,4.04046217,2485.2,2484.6,0.83660858]
[1724817164083,0.10060031,2485.1,2484.7,1.40136186]
[1724817164284,4.04046217,2485.2,2484.6,1.18396129]
[1724817164578,4.04046217,2485.2,2484.7,1.40138664]
[1724817164822,4.04046217,2485.2,2484.6,2.02056987]
[1724817165124,4.04046217,2485.2,2484.7,1.40136032]
[1724817165417,4.04046217,2485.2,2484.7,1.07919302]
[1724817166359,4.04046217,2485.2,2484.6,2.02056987]
[1724817166572,4.04046217,2485.2,2484.7,3.50348445]
[1724817166856,4.04046217,2485.2,2484.6,2.02056987]
[1724817167162,4.04046217,2485.2,2484.7,1.40139516]
[1724817167317,4.04046217,2485.2,2484.5,0.83660858]
[1724817167518,4.04046217,2485.2,2484.6,3.50350792]
[1724817167745,4.04046217,2485.2,2484.7,1.40140317]
[1724817167928,2.53998842,2485.2,2484.5,1.53455244]
[1724817168132,2.53998842,2485.2,2484.6,3.50348623]
[1724817168333,2.53998842,2485.2,2484.5,1.53455244]
[1724817168535,2.53998842,2485.2,2484.6,3.93797502]
[1724817168748,2.53998842,2485.2,2484.6,0.43448524]
[1724817170383,5.40008842,2485.2,2484.6,0.43448524]
[1724817171244,5.40008842,2485.2,2484.6,0.43335783]
[1724817172051,6.90056217,2485.4,2484.6,0.43335783]
[1724817172273,0.10060479,2485.3,2484.6,0.43335783]
[1724817173062,4.04046217,2485.2,2484.6,0.43335783]
[1724817174665,0.10060522,2485.1,2484.6,0.43335783]
[1724817176184,0.42129154,2485.0,2484.6,0.43335783]
[1724817176853,0.10061397,2484.9,2484.4,2.8103]
[1724817177055,4.46175371,2485.0,2484.4,2.8103]
[1724817178202,3.00661402,2484.9,2484.3,0.4044]
[1724817178690,4.04046217,2484.8,2484.2,8.20660858]
[1724817178994,4.04046217,2484.6,2484.2,8.20660858]
[1724817179200,3.65283677,2484.9,2484.2,0.83660858]
[1724817179201,4.04046217,2484.4,2484.2,0.83660858]
[1724817179363,0.10063823,2484.3,2484.2,0.83660858]
[1724817179573,0.10063823,2484.3,2484.2,0.41530858]
[1724817180270,3.0262,2484.4,2484.2,0.41530858]
[1724817180590,3.0262,2484.4,2484.1,1.25491287]
[1724817180839,4.04046217,2484.5,2484.1,1.25491287]
[1724817181168,4.14109602,2484.7,2484.1,1.25491287]
[1724817181369,4.04046217,2484.7,2484.2,0.45839369]
[1724817182555,4.14108631,2484.7,2484.2,0.37789267]
[1724817182793,4.14108631,2484.7,2484.1,1.25491287]
[1724817183586,4.04046217,2484.5,2484.1,1.25491287]
[1724817187086,4.04046217,2484.5,2484.0,2.52400582]
[1724817187289,4.04046217,2484.5,2484.0,2.4435]
[1724817189585,4.04046217,2484.3,2483.8,2.4933]
[1724817190015,4.04046217,2484.3,2483.9,0.08050861]
[1724817191283,4.04046217,2484.5,2483.9,0.08050861]
[1724817191493,4.1410979,2484.5,2483.9,0.42493724]
[1724817192528,0.42098242,2484.6,2484.0,2.443]
[1724817192833,0.42098242,2484.6,2484.1,0.08049987]
[1724817193931,4.04046217,2484.5,2484.1,0.08049987]
[1724817194131,4.04046217,2484.5,2484.0,2.443]
[1724817202753,4.04046217,2484.3,2483.8,2.3918]
[1724817202955,4.04046217,2484.3,2483.7,0.87047766]
[1724817204719,4.14109189,2484.5,2483.7,0.87047766]
[1724817205861,0.42098242,2484.6,2483.8,3.78170842]
[1724817206052,0.42098242,2484.6,2483.9,0.46521861]
[1724817206816,2.59582916,2485.1,2484.0,2.4928]
[1724817207016,6.63629133,2485.1,2484.2,2.4928]
[1724817207225,4.46168594,2484.9,2484.2,2.4928]
[1724817207472,4.04046217,2484.7,2484.2,2.4928]
[1724817207676,4.04046217,2484.7,2484.1,7.66580186]
[1724817207824,4.04046217,2484.5,2484.1,7.37]
[1724817208029,0.10062989,2484.4,2483.9,0.46521861]
[1724817208254,4.04046217,2484.5,2484.0,1.37211589]
[1724817209560,2.47624509,2484.5,2484.0,1.37211589]
[1724817211665,2.47624509,2484.5,2483.9,0.46521861]
[1724817212140,0.91216646,2484.5,2484.0,1.40173047]
[1724817212343,0.91216646,2484.5,2483.9,1.30115894]
[1724817212545,0.91216646,2484.5,2484.0,1.65725966]
[1724817212740,0.91216646,2484.5,2484.0,0.25554297]
[1724817213337,0.91216646,2484.5,2483.9,1.30115894]
[1724817213548,0.91216646,2484.5,2484.0,3.50428933]
[1724817213731,0.91216646,2484.5,2483.9,0.46521861]
[1724817213941,0.91216646,2484.5,2484.0,1.40175423]
[1724817214170,0.91216646,2484.5,2483.9,1.30115894]
[1724817214328,0.91216646,2484.5,2484.0,3.75978037]
[1724817214530,0.91216646,2484.5,2484.1,1.40169496]
[1724817214732,0.91216646,2484.5,2484.0,0.25554297]
[1724817215670,0.91216646,2484.5,2483.9,1.30115894]
[1724817215835,0.91216646,2484.5,2484.0,3.50439435]
[1724817216034,0.91216646,2484.5,2483.9,1.30115894]
[1724817216359,0.91216646,2484.5,2484.0,3.50439059]
[1724817216568,0.10063474,2484.4,2483.9,0.46521861]
[1724817217542,0.10063474,2484.4,2484.0,1.40179274]
[1724817217749,0.10063474,2484.4,2483.9,0.46521861]
[1724817217937,1.01280203,2484.5,2484.0,1.40180477]
[1724817218140,1.01280203,2484.5,2483.9,1.30115894]
[1724817218462,1.01280203,2484.5,2484.0,3.50442315]
[1724817218775,1.01280203,2484.5,2483.9,1.30115894]
[1724817218990,1.01280203,2484.5,2484.0,3.75997077]
[1724817219175,0.10063558,2484.4,2484.0,0.25554297]
[1724817219372,0.10063558,2484.4,2484.1,1.40177424]
[1724817219589,0.10063558,2484.4,2484.0,0.25554297]
[1724817220249,0.10063558,2484.4,2484.1,1.40177562]
[1724817220435,0.10063558,2484.4,2484.0,0.25554297]
[1724817220636,0.10063558,2484.4,2484.1,1.40177578]
[1724817220968,0.10063558,2484.4,2484.0,1.0914833]
[1724817221169,0.10063558,2484.4,2484.1,3.50437868]
[1724817221378,0.10063558,2484.4,2484.1,0.50610806]
[1724817221576,0.10063561,2484.6,2484.2,1.40175827]
[1724817221738,0.1006348,2484.7,2484.2,2.5667]
[1724817222078,0.42122377,2484.9,2484.3,2.07540074]
[1724817222280,2.5375,2485.5,2484.6,2.4954]
[1724817222577,0.42124787,2484.8,2484.7,3.50392665]
[1724817222734,1.6845259,2484.8,2484.5,0.83594033]
[1724817222938,1.6845259,2484.8,2484.6,3.50358203]
[1724817223160,1.6845259,2484.8,2484.7,1.83538505]
[1724817223350,1.6845259,2484.8,2484.4,8.20594033]
[1724817223549,1.6845259,2484.6,2484.5,3.503678]
[1724817223752,1.6845259,2484.8,2484.5,3.50375187]
[1724817223977,0.42123217,2485.2,2484.6,3.79000838]
[1724817224180,0.42123217,2485.2,2484.7,3.50339785]
[1724817224338,0.42123217,2485.2,2484.8,0.67278382]
[1724817224538,0.42123217,2485.2,2484.6,3.22444033]
[1724817224741,0.42123217,2485.2,2484.7,1.40133364]
[1724817224957,0.42123217,2485.2,2484.6,2.3885]
[1724817224958,0.42123217,2485.2,2484.6,3.22444033]
[1724817225166,0.42123217,2485.2,2484.8,2.3634]
[1724817225354,4.04123262,2485.6,2484.9,0.58667139]
[1724817225661,4.04123262,2485.6,2484.8,2.3634]
[1724817225662,0.42119982,2485.3,2484.8,2.3634]
[1724817226844,4.04123262,2485.2,2484.5,2.3634]
[1724817227078,4.04123262,2485.2,2484.6,1.40137493]
[1724817227353,4.04123262,2485.2,2484.5,2.84784859]
[1724817227354,2.90839962,2485.3,2484.5,2.84784859]
[1724817227556,2.90839962,2485.3,2484.6,3.50344255]
[1724817227856,2.90839962,2485.3,2484.5,2.84784859]
[1724817228070,2.90839962,2485.3,2484.6,1.76974607]
[1724817228383,2.90839962,2485.3,2484.6,0.36837889]
[1724817229061,0.42119982,2485.3,2484.7,2.5009]
[1724817237113,2.4269,2485.2,2484.6,0.36837889]
[1724817237609,6.56873281,2485.2,2484.6,0.36837889]
[1724817238176,6.46813262,2485.2,2484.6,0.36837889]
[1724817240707,6.56873459,2485.2,2484.6,0.36837889]
[1724817240967,6.56873459,2485.2,2484.5,0.48444859]
[1724817242623,4.04123262,2485.0,2484.4,8.20594033]
[1724817242826,4.04123262,2485.0,2484.1,1.67236097]
[1724817242827,2.4717,2484.5,2484.1,7.37]
[1724817242986,4.04123262,2484.4,2483.8,8.20594033]
[1724817243186,4.04123262,2484.4,2483.9,1.99059577]
[1724817243600,4.14186354,2484.4,2483.9,1.99059577]
[1724817243808,4.04123262,2484.4,2483.8,7.37]
[1724817243990,1.68492558,2484.2,2483.8,7.37]
[1724817244331,1.68492558,2484.2,2483.9,0.98407]
[1724817245838,1.78555828,2484.4,2483.9,0.98407]
[1724817246142,1.68492558,2484.4,2483.9,0.98407]
[1724817247438,1.68492558,2484.3,2483.9,0.98407]
[1724817247603,1.68492558,2484.3,2484.0,0.835407]
[1724817248711,1.68492558,2484.5,2484.0,0.835407]
[1724817248916,1.68492558,2484.5,2484.1,2.6319]
[1724817249249,1.68492558,2484.5,2484.2,0.3467307]
[1724817249404,0.42122707,2484.7,2484.2,0.3467307]
[1724817249601,1.3249106,2485.0,2484.2,0.3467307]
[1724817249905,7.01,2485.4,2484.2,0.3467307]
[1724817249906,1.68492558,2484.9,2484.4,2.6319]
[1724817250218,0.10060939,2485.3,2484.5,0.61354469]
[1724817250536,1.68492558,2484.8,2484.4,2.6319]
[1724817250745,1.68492558,2484.7,2484.4,2.6319]
[1724817250950,1.68492558,2484.6,2484.4,0.29786307]
[1724817251242,1.68492558,2484.5,2484.1,10.78094033]
[1724817251407,1.68492558,2484.6,2484.2,3.50394073]
[1724817251606,1.68492558,2484.6,2484.3,2.0930644]
[1724817251806,1.68492558,2484.6,2484.1,3.41094033]
[1724817252118,1.68492558,2484.7,2484.2,4.33969096]
[1724817252326,1.68492558,2484.7,2484.3,2.09296935]
[1724817252525,1.68492558,2484.6,2484.3,0.6914691]
[1724817252862,1.68492558,2484.6,2484.1,3.4129381]
[1724817253160,1.68492558,2484.6,2484.2,4.3416699]
[1724817253364,1.68492558,2484.6,2484.3,3.5037318]
[1724817253513,1.68492558,2484.6,2484.1,3.4129381]
[1724817253714,1.68492558,2484.6,2484.2,4.05430505]
[1724817253955,1.68492558,2484.6,2484.2,0.55052523]
[1724817255038,1.68492558,2484.4,2484.0,1.6733451]
[1724817255352,0.10061862,2484.5,2483.9,12.42]
[1724817255353,1.68492558,2484.1,2483.9,12.42]
[1724817255653,1.68492558,2484.4,2483.9,12.42]
[1724817255811,1.68492558,2484.5,2484.0,2.30786381]
[1724817256218,0.100632,2484.7,2484.0,2.30786381]
[1724817256522,1.68492558,2484.5,2483.8,10.6586381]
[1724817256728,1.68492558,2484.4,2483.9,3.50426675]
[1724817256932,1.68492558,2484.4,2483.8,10.6586381]
[1724817257252,1.68492558,2484.5,2483.9,4.86430094]
[1724817257456,1.68492558,2484.5,2484.0,6.10735386]
[1724817257754,1.68492558,2484.5,2484.0,2.6031]
[1724817269176,1.68492558,2484.5,2484.1,1.40164915]
[1724817269487,1.68492558,2484.5,2484.2,0.40047492]
[1724817270886,0.42126857,2485.1,2484.3,2.5465]
[1724817271097,0.42126857,2485.1,2484.5,2.5465]
[1724817271388,1.68492558,2485.2,2484.5,2.5465]
[1724817272493,1.68492558,2485.0,2484.5,2.5465]
[1724817272677,7.44,2485.3,2484.5,2.5465]
[1724817272874,1.68492558,2485.0,2484.6,0.25465]
[1724817273366,1.68492558,2485.2,2484.7,2.5465]
[1724817275306,0.08686616,2485.3,2484.7,2.5465]
[1724817275462,0.08686616,2485.3,2484.7,2.88494381]
[1724817275815,1.68492558,2485.6,2484.9,2.404]
[1724817276101,1.68492558,2485.6,2485.0,1.40107226]
[1724817276277,1.68492558,2485.6,2484.8,2.52286368]
[1724817276278,1.68492558,2485.6,2485.2,2.404]
[1724817279299,1.68492558,2485.5,2485.2,2.404]
[1724817280594,1.68492558,2485.5,2485.1,0.38050723]
[1724817280904,1.68492558,2485.3,2484.9,2.4149]
[1724817286705,1.68492558,2485.3,2484.7,2.5294]
[1724817286706,1.68492558,2485.1,2484.7,2.5294]
[1724817286913,1.68492558,2484.8,2484.4,2.5294]
[1724817287685,1.68492558,2485.0,2484.4,2.5294]
[1724817289076,1.68492558,2484.8,2484.4,2.5294]
[1724817290324,1.68492558,2484.8,2484.4,2.86613381]
[1724817290494,0.17906674,2484.8,2484.4,2.86613381]
[1724817291022,0.42130458,2484.7,2484.4,2.86613381]
[1724817297036,0.52935786,2485.0,2484.4,2.86613381]
[1724817298337,0.52935786,2485.0,2484.5,0.28661338]
[1724817300390,1.68492558,2484.8,2484.5,0.28661338]
[1724817300619,1.68492558,2484.8,2484.4,2.5294]
[1724817301331,1.68492558,2485.0,2484.4,2.5294]
[1724817301636,1.68492558,2485.0,2484.5,0.25294]
[1724817303841,0.12919321,2485.0,2484.5,0.25294]
[1724817304222,2.3942,2485.3,2483.9,0.8379381]
[1724817304223,2.6262,2484.5,2483.9,0.8379381]
[1724817304538,1.68492558,2484.6,2483.7,1.68492558]
[1724817304723,1.68492558,2484.6,2483.8,2.02705938]
[1724817304964,1.68492558,2484.6,2483.8,0.62541611]
[1724817305130,1.68492558,2484.4,2483.5,2.52286368]
[1724817305335,1.68492558,2484.4,2483.6,3.90810302]
[1724817305531,0.4213898,2484.6,2483.7,1.04699667]
[1724817305755,1.68492558,2484.5,2483.8,0.9539]
[1724817306463,1.68492558,2484.3,2483.8,0.9539]
[1724817306666,0.4213898,2484.6,2483.8,0.9539]
[1724817306942,0.4213898,2484.6,2483.9,2.08882558]
[1724817307149,0.4213898,2484.6,2484.0,0.81388256]
[1724817307360,0.4213898,2484.6,2484.1,2.592]
[1724817312782,0.52200796,2484.6,2484.1,2.592]
[1724817312940,4.04239756,2484.3,2483.9,7.37]
[1724817313140,4.44663732,2484.3,2483.6,22.2377]
[1724817313382,4.04239756,2484.1,2483.6,22.2377]
[1724817314183,4.14303708,2484.5,2483.6,22.2377]
[1724817314503,3.1151898,2484.6,2483.7,4.79147]
[1724817314504,0.4213898,2484.6,2483.7,4.79147]
[1724817314647,0.52202279,2484.6,2483.8,2.51]
[1724817314838,0.52202279,2484.6,2483.9,0.473377]